bitfinex/quotes_ETHUSD_20240717
["timestamp","ask_amount","ask_price","bid_price","bid_amount"]
[1721257246240,4.42555078,3399.2,3399.1,0.49923976]
[1721257246661,4.42556392,3399.2,3399.1,0.49923976]
[1721257247181,1.48370564,3399.2,3398.3,1.061]
[1721257247468,0.61341019,3398.6,3398.4,0.400372]
[1721257247981,0.61341019,3398.7,3398.5,1.061]
[1721257248158,0.61341019,3398.7,3398.6,2.94238]
[1721257248339,0.61341019,3398.8,3398.6,2.94238]
[1721257248539,0.61341019,3398.7,3398.6,2.94238]
[1721257248844,0.61341019,3398.8,3398.6,2.94238]
[1721257249043,0.92011528,3398.9,3398.7,0.694586]
[1721257249361,0.61358084,3398.9,3398.7,0.694586]
[1721257249567,0.92011528,3398.9,3398.7,0.694586]
[1721257249733,0.92011528,3398.8,3398.5,2.94241]
[1721257249934,0.613634,3398.6,3398.5,2.94241]
[1721257250231,0.613634,3398.6,3398.5,5.31351]
[1721257250796,0.613634,3398.6,3398.5,2.3711]
[1721257251444,0.613634,3398.7,3398.5,2.3711]
[1721257251642,0.613634,3398.6,3398.5,2.3711]
[1721257251848,0.613634,3398.6,3398.5,5.951028]
[1721257252073,0.67587252,3398.7,3398.5,2.3711]
[1721257252370,0.613634,3398.6,3398.5,2.3711]
[1721257253338,0.9823538,3398.7,3398.5,2.3711]
[1721257255693,0.92011528,3398.6,3398.5,2.3711]
[1721257258973,0.9823538,3398.7,3398.5,2.3711]
[1721257260558,0.9823538,3398.7,3398.5,3.4321]
[1721257261802,0.9823538,3398.7,3397.7,2.9431]
[1721257261803,0.9823538,3398.7,3398.3,3.3344]
[1721257262004,0.61397373,3398.5,3398.3,3.3344]
[1721257262496,0.61397373,3398.5,3398.3,2.2734]
[1721257262859,0.61397373,3398.5,3398.3,3.3344]
[1721257263200,0.61397373,3398.5,3398.4,0.627705]
[1721257265412,0.61397373,3398.5,3398.3,6.27704]
[1721257267707,0.61397373,3398.4,3398.3,6.27704]
[1721257269224,0.61397373,3398.4,3398.3,9.21968]
[1721257269505,0.92011528,3398.6,3398.4,2.4659]
[1721257269717,0.61483951,3398.5,3398.4,8.35102]
[1721257269918,0.67707803,3398.7,3398.6,2.4659]
[1721257270068,0.67707803,3398.7,3398.6,9.41166]
[1721257270267,0.06223852,3398.7,3398.6,9.41166]
[1721257271914,0.06223852,3398.7,3398.6,12.41166]
[1721257272116,0.06223852,3398.7,3398.6,13.947082]
[1721257272766,0.06223852,3398.7,3398.6,16.889462]
[1721257273196,0.06223852,3398.7,3398.6,17.91232883]
[1721257273399,0.06223852,3398.7,3398.6,16.889462]
[1721257274376,0.06223852,3398.7,3398.6,13.947082]
[1721257280699,0.06223852,3398.7,3398.6,16.889462]
[1721257282198,0.06223852,3398.7,3398.6,13.947082]
[1721257282521,0.06223852,3398.7,3398.6,16.889462]
[1721257288493,0.06223852,3398.7,3398.6,22.931842]
[1721257288791,0.06223852,3398.7,3398.6,24.50460602]
[1721257288981,0.06223852,3398.7,3398.6,25.12023807]
[1721257290419,0.06223852,3398.7,3398.6,25.12013526]
[1721257290620,7.31,3399.9,3399.8,2.94134]
[1721257290921,0.92011528,3400.3,3399.8,2.94134]
[1721257290922,0.61483951,3400.2,3399.8,4.00234]
[1721257291080,0.61483951,3400.2,3400.0,1.061]
[1721257291597,0.92011528,3400.3,3399.7,2.94138]
[1721257291598,0.61483951,3400.1,3399.7,2.94138]
[1721257291785,3.00283951,3400.0,3399.4,2.94166]
[1721257292145,0.61483951,3399.9,3399.4,2.94166]
[1721257292421,0.61483951,3399.7,3399.3,4.00274]
[1721257292735,2.28,3399.6,3399.0,2.94201]
[1721257292920,0.61483951,3399.5,3399.2,2.94186]
[1721257294648,0.61483951,3399.5,3399.1,1.061]
[1721257294821,0.61483951,3399.5,3398.8,1.061]
[1721257294822,2.89343951,3399.4,3398.8,1.061]
[1721257295022,5.83530951,3399.2,3398.6,1.061]
[1721257295315,5.83530951,3399.2,3398.4,2.94251]
[1721257295316,0.61483951,3399.0,3398.4,4.00351]
[1721257295495,0.61483951,3398.9,3398.4,1.061]
[1721257295699,2.2786,3398.7,3398.3,2.94262]
[1721257296093,2.2786,3398.7,3398.2,1.061]
[1721257296319,2.89343951,3398.7,3398.2,1.061]
[1721257296483,2.89343951,3398.7,3398.2,4.00372]
[1721257298226,2.89343951,3398.7,3398.2,2.94272]
[1721257298645,2.2786,3398.7,3398.2,2.94272]
[1721257299046,2.89343951,3398.7,3398.2,2.94272]
[1721257299831,2.89343951,3398.7,3398.0,5.88571]
[1721257300127,2.89343951,3398.7,3398.2,2.94273]
[1721257302040,2.39343951,3398.7,3398.2,2.94273]
[1721257302202,1.7786,3398.7,3398.2,2.94273]
[1721257302840,1.2786,3398.7,3398.2,2.94273]
[1721257302997,1.2786,3398.7,3398.3,2.94264]
[1721257304206,0.61483951,3398.8,3398.5,2.94239]
[1721257304412,0.61483951,3398.8,3398.5,2.94246]
[1721257304627,0.61483951,3398.7,3398.3,3.59059619]
[1721257304839,0.61483951,3398.8,3398.3,3.59059619]
[1721257305350,0.61483951,3398.7,3398.3,3.59059619]
[1721257305543,0.61483951,3398.8,3398.3,3.59059619]
[1721257305853,2.86833951,3398.8,3398.3,3.59059619]
[1721257306140,0.61483951,3398.7,3398.3,3.59059619]
[1721257306497,0.61483951,3398.7,3398.4,2.94255]
[1721257306708,0.61483951,3398.7,3398.5,2.94243]
[1721257306909,0.61483951,3398.8,3398.6,2.94233]
[1721257309340,0.61483951,3398.8,3398.5,2.94247]
[1721257310018,0.61483951,3398.8,3398.6,2.94238]
[1721257310216,0.61483951,3398.8,3398.6,3.59621046]
[1721257310421,0.61483951,3398.8,3398.6,3.79621046]
[1721257311543,0.61483951,3398.8,3398.6,0.85383046]
[1721257311745,0.61483951,3398.8,3398.6,0.2]
[1721257312483,0.61483951,3398.8,3398.6,3.14235]
[1721257314887,0.61483951,3398.8,3398.6,3.34235]
[1721257316598,0.61483951,3398.8,3398.7,2.9423]
[1721257319509,0.61371102,3398.8,3398.6,1.461]
[1721257319681,0.61371102,3398.8,3398.6,4.40338]
[1721257319882,0.61371102,3398.8,3398.6,5.20325146]
[1721257320184,0.61371102,3398.8,3398.6,8.14557146]
[1721257320493,0.61371102,3398.8,3398.6,5.20324146]
[1721257321783,0.61371102,3398.8,3398.7,2.9423]
[1721257322182,1.22682038,3399.1,3398.7,2.9423]
[1721257322183,0.61371102,3398.9,3398.7,2.9423]
[1721257322394,0.92011528,3399.1,3398.7,2.9423]
[1721257322395,0.61371102,3399.1,3399.0,5.88408]
[1721257322573,7.31,3399.3,3399.2,5.88372]
[1721257322884,0.61371102,3399.6,3399.4,2.94169]
[1721257323300,0.61371102,3399.6,3399.5,2.9416]
[1721257323518,0.61371102,3399.6,3399.5,4.0026]
[1721257323832,0.61371102,3399.6,3399.5,1.061]
[1721257323989,0.92011528,3399.7,3399.4,2.94167]
[1721257324190,0.61389178,3399.5,3399.4,2.94167]
[1721257324502,0.61389178,3399.6,3399.4,3.63612]
[1721257324717,0.61389178,3399.6,3399.5,2.9416]
[1721257331337,0.61389178,3399.6,3399.5,4.0026]
[1721257331510,0.61389178,3399.7,3399.5,4.0026]
[1721257331711,0.61389178,3399.7,3399.5,5.010543]
[1721257332912,0.61389178,3399.7,3399.6,2.94152]
[1721257333120,8.23011528,3399.9,3399.7,2.94143]
[1721257333541,0.92011528,3399.9,3399.7,2.94143]
[1721257333732,0.92011528,3399.9,3399.8,0.7951973]
[1721257333909,0.92011528,3400.0,3399.8,0.7951973]
[1721257334422,0.6141247,3400.0,3399.7,2.94143]
[1721257334626,0.6141247,3400.1,3400.0,2.94117]
[1721257334848,7.9241247,3400.3,3400.0,2.94117]
[1721257335034,7.9241247,3400.3,3400.2,1.061]
[1721257335225,7.31,3400.3,3400.2,1.061]
[1721257335835,7.38669674,3400.3,3400.2,1.061]
[1721257336035,7.31,3400.3,3400.2,1.061]
[1721257336255,7.3866967,3400.3,3400.2,1.061]
[1721257336456,0.6141247,3400.5,3400.4,2.94083]
[1721257336609,0.6141247,3400.7,3400.4,4.00183]
[1721257337320,0.6141247,3400.8,3400.4,4.00183]
[1721257337531,0.6141247,3400.7,3400.4,4.00183]
[1721257337837,0.07668932,3400.6,3400.4,4.00183]
[1721257338041,0.69081402,3400.6,3400.4,4.00183]
[1721257338245,0.6141247,3400.7,3400.4,4.00183]
[1721257338407,0.6141247,3400.8,3400.4,4.00183]
[1721257338611,0.07668884,3400.7,3400.4,4.00183]
[1721257338809,0.6141247,3400.8,3400.4,4.00183]
[1721257339024,0.07668883,3400.7,3400.4,4.00183]
[1721257339222,0.6141247,3400.8,3400.4,4.00183]
[1721257339841,0.6141247,3400.8,3400.5,2.94074]
[1721257340144,0.6141247,3400.9,3400.6,4.00165]
[1721257340349,0.92011528,3401.0,3400.6,4.00165]
[1721257340350,0.6141247,3401.0,3400.6,4.00165]
[1721257340508,0.07668775,3400.9,3400.7,2.94056]
[1721257340708,0.6141247,3401.0,3400.7,2.94056]
[1721257341622,0.6141247,3401.1,3400.7,2.94056]
[1721257341818,0.07668747,3401.0,3400.7,2.94056]
[1721257342152,0.6141247,3401.1,3400.7,3.634781]
[1721257342837,0.07668753,3401.0,3400.8,1.061]
[1721257343020,0.6141247,3401.2,3400.8,1.061]
[1721257343351,0.6141247,3401.3,3400.8,1.061]
[1721257343528,0.6141247,3401.3,3400.8,3.7041131]
[1721257343856,0.92011528,3401.5,3401.1,1.061]
[1721257343857,0.6141247,3401.5,3401.1,1.061]
[1721257344156,2.2972,3401.6,3401.1,1.061]
[1721257344157,0.69080489,3401.4,3401.1,1.061]
[1721257344462,0.6141247,3401.5,3401.0,2.94028]
[1721257344660,0.0766809,3401.4,3401.0,2.94028]
[1721257344820,0.6141247,3401.5,3401.0,2.94028]
[1721257345163,0.6141247,3401.5,3401.1,1.061]
[1721257345662,2.9113247,3401.6,3401.1,1.061]
[1721257345865,0.07667988,3401.5,3401.1,1.061]
[1721257346019,2.9113247,3401.6,3401.1,1.061]
[1721257346223,0.07667916,3401.5,3401.1,1.061]
[1721257346447,2.9113247,3401.6,3401.1,1.83153931]
[1721257346753,0.07667994,3401.5,3401.1,1.83153931]
[1721257346957,2.9113247,3401.6,3401.1,1.83153931]
[1721257347158,0.07667972,3401.5,3401.1,4.77175931]
[1721257347455,2.9113247,3401.6,3401.1,4.77175931]
[1721257348554,2.2972,3401.6,3401.1,4.77175931]
[1721257348960,2.2972,3401.6,3401.1,0.77053931]
[1721257349177,2.2972,3401.6,3401.0,2.94029]
[1721257349825,2.2647,3401.3,3400.7,0.2]
[1721257351036,2.2647,3401.3,3400.7,4.20155]
[1721257351346,2.2647,3401.3,3400.7,4.40155]
[1721257351659,3.5539447,3401.6,3400.9,1.061]
[1721257351854,5.23402,3401.6,3400.9,1.061]
[1721257352022,5.23402,3401.6,3400.9,4.00136]
[1721257353136,2.93989,3401.5,3400.9,2.94036]
[1721257353535,2.93989,3401.5,3400.9,4.00136]
[1721257353717,2.93989,3401.5,3401.0,1.01182498]
[1721257354225,2.93989,3401.5,3400.9,4.00136]
[1721257354420,2.93989,3401.5,3400.9,1.061]
[1721257355132,2.2942,3401.6,3400.7,0.4]
[1721257355133,8.32376,3400.8,3400.7,0.4]
[1721257355862,2.4428,3400.2,3398.9,4.00312]
[1721257356023,2.9415,3399.7,3399.0,0.92880277]
[1721257356220,2.94153,3399.6,3398.4,2.9425]
[1721257356423,2.94177,3399.4,3398.6,2.94237]
[1721257356660,2.94152,3399.6,3398.6,2.94237]
[1721257356872,7.31,3400.1,3398.8,2.94213]
[1721257356873,2.94131,3399.9,3398.8,2.94213]
[1721257357039,2.94145,3399.7,3398.9,3.53055]
[1721257357564,7.31,3400.1,3399.1,2.94194]
[1721257357725,5.38385,3400.2,3399.2,2.94184]
[1721257357928,2.94128,3399.9,3399.2,2.94184]
[1721257358222,2.94113,3400.1,3399.2,2.94184]
[1721257358436,2.94113,3400.1,3399.3,0.829127]
[1721257358641,2.94119,3400.0,3399.3,0.829127]
[1721257358827,2.94119,3400.0,3399.3,3.770897]
[1721257359435,2.94126,3399.9,3399.3,0.829127]
[1721257359632,2.94126,3399.9,3399.1,2.9419]
[1721257359850,2.94126,3399.9,3399.2,2.94186]
[1721257361782,0.61264216,3400.1,3399.2,2.94186]
[1721257362065,3.55369216,3400.2,3399.5,2.9416]
[1721257362275,0.68935425,3400.1,3399.5,2.9416]
[1721257362569,0.61264216,3400.1,3399.5,2.9416]
[1721257362875,0.689353,3400.1,3399.3,2.94173]
[1721257363367,0.61264216,3400.1,3399.3,2.94173]
[1721257363581,0.61264216,3400.1,3399.4,2.94163]
[1721257363582,0.68935298,3400.1,3399.4,2.94163]
[1721257363794,0.68935298,3400.1,3399.5,2.9416]
[1721257364086,0.68935298,3400.1,3399.2,2.94186]
[1721257364087,2.9412,3400.0,3399.2,2.94186]
[1721257364379,3.55384216,3400.0,3399.2,2.94186]
[1721257364582,0.68935686,3399.9,3399.2,2.94186]
[1721257364772,3.55384216,3400.0,3399.2,2.94186]
[1721257365080,0.07671405,3399.9,3399.0,2.94201]
[1721257365265,0.07671405,3399.9,3398.9,0.58845]
[1721257365266,6.11222782,3399.9,3398.9,0.58845]
[1721257365468,2.94152,3399.6,3398.8,2.94216]
[1721257365675,2.94152,3399.6,3398.7,2.94222]
[1721257365676,3.55416216,3399.6,3398.9,2.94211]
[1721257366949,2.94152,3399.6,3398.9,2.94211]
[1721257367678,3.55416216,3399.6,3398.9,2.94211]
[1721257368188,2.94152,3399.6,3398.9,2.94211]
[1721257368490,3.55416216,3399.6,3398.9,2.94211]
[1721257369250,2.94152,3399.6,3398.9,2.94211]
[1721257369801,3.55416216,3399.6,3398.9,2.94211]
[1721257370782,3.55416216,3399.6,3398.5,2.94244]
[1721257370783,2.94178,3399.3,3398.5,2.94244]
[1721257370967,3.55442216,3399.3,3398.5,2.94244]
[1721257371495,3.55442216,3399.3,3398.6,2.94238]
[1721257371791,3.55442216,3399.3,3398.7,2.94229]
[1721257372289,0.61264216,3399.4,3398.7,2.94229]
[1721257372485,0.68936695,3399.4,3398.7,2.94229]
[1721257372651,0.61264216,3399.4,3398.8,0.588475]
[1721257372846,2.94163,3399.5,3398.8,0.588475]
[1721257373052,0.61264216,3399.6,3398.8,0.588475]
[1721257373349,0.689363,3399.6,3398.9,2.94204]
[1721257373548,2.94145,3399.7,3398.9,2.94204]
[1721257373549,3.55409216,3399.7,3398.9,2.94204]
[1721257373791,0.0767167,3399.6,3398.9,2.94204]
[1721257373955,3.55409216,3399.7,3398.9,2.94204]
[1721257374152,3.55409216,3399.7,3399.0,2.94202]
[1721257374348,0.6893609,3399.6,3399.0,2.94202]
[1721257374785,0.61264216,3399.6,3399.0,2.94202]
[1721257374995,3.55409216,3399.7,3399.0,2.94202]
[1721257375193,0.07671854,3399.6,3399.1,2.94195]
[1721257375395,3.55399216,3399.8,3399.1,2.94195]
[1721257375730,0.076717,3399.7,3399.1,2.94195]
[1721257375985,3.55399216,3399.8,3399.1,2.94195]
[1721257376150,0.07671657,3399.7,3399.1,2.94195]
[1721257376356,3.55399216,3399.8,3399.1,3.8334496]
[1721257376558,0.07671711,3399.7,3399.1,3.8334496]
[1721257376849,3.63080034,3399.7,3399.1,3.8334496]
[1721257377054,3.55408216,3399.7,3399.1,2.94195]
[1721257377577,0.0767203,3399.6,3399.1,2.94195]
[1721257377898,2.94144,3399.7,3399.1,2.94195]
[1721257378078,3.55408216,3399.7,3399.1,2.94195]
[1721257378400,0.61264216,3399.8,3399.5,0.2]
[1721257378554,3.63070976,3399.8,3399.5,0.2]
[1721257378750,0.0767175,3399.7,3399.5,0.2]
[1721257378950,0.68935966,3399.6,3399.5,0.2]
[1721257379489,3.63127316,3399.6,3399.5,0.2]
[1721257379675,3.0182375,3399.6,3399.5,0.2]
[1721257380462,3.63110531,3399.6,3399.5,0.2]
[1721257380695,3.0182375,3399.6,3399.5,0.2]
[1721257380878,3.63108882,3399.6,3399.5,0.2]
[1721257381094,3.55437132,3399.6,3399.5,0.2]
[1721257381392,3.63109453,3399.6,3399.5,0.2]
[1721257381601,3.55437132,3399.6,3399.5,0.2]
[1721257381773,0.61285132,3399.7,3399.5,0.2]
[1721257381965,0.61285132,3399.8,3399.5,0.2]
[1721257382155,7.92285132,3400.0,3399.5,0.514175]
[1721257382356,7.31,3400.0,3399.5,0.2]
[1721257382568,7.31,3400.0,3399.5,3.14157]
[1721257382991,7.31,3400.0,3399.6,2.94151]
[1721257384065,0.61285132,3400.2,3399.6,2.94151]
[1721257384373,0.68955928,3400.2,3399.6,2.94151]
[1721257384572,0.68955928,3400.1,3399.6,2.94151]
[1721257384771,0.61285132,3400.1,3399.6,3.79705]
[1721257384971,0.61285132,3400.2,3399.6,3.79705]
[1721257385196,0.68955846,3400.2,3399.6,3.79705]
[1721257387209,0.68955846,3400.1,3399.6,3.79705]
[1721257387364,0.61285132,3400.1,3399.6,3.79705]
[1721257389606,0.68956011,3400.0,3399.6,3.79705]
[1721257389775,0.61285132,3400.1,3399.7,0.941094]
[1721257389975,0.61285132,3400.1,3399.6,2.94151]
[1721257390182,0.68955854,3400.0,3399.6,2.94151]
[1721257390499,0.61285132,3400.0,3399.6,2.94151]
[1721257392308,0.68955985,3399.9,3399.6,2.94151]
[1721257392478,0.61285132,3399.9,3399.6,3.79705]
[1721257392864,0.61285132,3400.0,3399.7,2.94143]
[1721257393064,0.68955764,3399.9,3399.7,2.94143]
[1721257393311,0.61285132,3399.9,3399.7,2.94143]
[1721257394367,0.61285132,3399.9,3399.7,3.882516]
[1721257394569,0.6895575,3399.9,3399.7,3.882516]
[1721257394768,0.61285132,3400.0,3399.7,3.882516]
[1721257395309,0.61285132,3399.9,3399.7,3.882516]
[1721257395506,0.68955454,3399.8,3399.7,2.94143]
[1721257396098,0.07670322,3399.8,3399.7,2.94143]
[1721257396301,0.99566646,3399.9,3399.7,2.94143]
[1721257396464,0.69167004,3399.8,3399.7,2.94143]
[1721257396669,0.91896324,3399.9,3399.7,2.94143]
[1721257397418,1.65993026,3399.9,3399.7,2.94143]
[1721257397623,0.43464593,3399.8,3399.7,2.94143]
[1721257397832,0.92304724,3399.8,3399.7,2.94143]
[1721257399528,0.99975357,3399.8,3399.7,2.94143]
[1721257400023,0.92304724,3399.8,3399.7,2.94143]
[1721257400597,0.99975389,3399.8,3399.7,2.94143]
[1721257401321,0.99975388,3399.8,3399.7,2.94143]
[1721257401523,0.92304724,3399.8,3399.7,2.94143]
[1721257401752,0.99975388,3399.8,3399.7,2.94143]
[1721257402018,0.92304724,3399.8,3399.7,2.94143]
[1721257402693,0.99975388,3399.8,3399.7,2.94143]
[1721257403224,0.92304724,3399.8,3399.7,2.94143]
[1721257403391,0.99975389,3399.8,3399.7,2.94143]
[1721257404526,0.99975389,3399.8,3399.5,3.34154]
[1721257404734,0.61488458,3399.6,3399.5,0.4]
[1721257404918,0.99902085,3399.6,3399.5,0.4]
[1721257405399,0.99894456,3399.6,3399.5,0.4]
[1721257405951,2.71326364,3399.6,3399.5,0.4]
[1721257406108,3.14730154,3399.6,3399.5,0.4]
[1721257406317,1.61036638,3399.6,3399.5,0.4]
[1721257406915,2.40562917,3399.6,3399.5,0.4]
[1721257407123,2.84002947,3399.6,3399.5,0.4]
[1721257407422,2.84015915,3399.6,3399.5,0.4]
[1721257407627,1.61049606,3399.6,3399.5,0.4]
[1721257407822,2.84049492,3399.6,3399.5,0.4]
[1721257408030,1.61049606,3399.6,3399.5,0.4]
[1721257408193,2.40614232,3399.6,3399.5,0.4]
[1721257408511,2.840526,3399.6,3399.5,0.4]
[1721257408713,1.66441362,3399.6,3399.5,0.4]
[1721257409072,2.8407532,3399.6,3399.5,0.4]
[1721257409198,3.14773346,3399.6,3399.5,0.4]
[1721257409400,3.14822997,3399.6,3399.5,0.4]
[1721257409833,0.35766665,3399.6,3399.5,0.4]
[1721257410041,3.14816597,3399.6,3399.5,0.4]
[1721257410449,3.1481863,3399.6,3399.5,0.4]
[1721257411233,6.0897063,3399.6,3399.5,0.4]
[1721257411438,9.83055951,3399.6,3399.5,0.4]
[1721257411614,10.48413958,3399.6,3399.5,0.4]
[1721257411809,12.32909973,3399.6,3399.5,0.4]
[1721257412022,19.92945784,3399.6,3399.5,0.36000001]
[1721257412226,17.77700433,3399.6,3399.5,0.36000001]
[1721257412461,15.17260672,3399.6,3399.5,0.36000001]
[1721257412741,17.77730604,3399.6,3399.5,0.36000001]
[1721257413137,17.77730604,3399.6,3399.5,0.23382735]
[1721257413843,18.32730604,3399.6,3399.5,0.23382735]
[1721257414946,14.83578604,3399.6,3399.5,0.23382735]
[1721257415448,16.98753098,3399.6,3399.5,0.23382735]
[1721257415758,16.98797948,3399.6,3399.5,0.23382735]
[1721257416047,19.92949948,3399.6,3399.5,0.23382735]
[1721257416269,20.47949948,3399.6,3399.5,0.23382735]
[1721257416838,18.25135411,3399.6,3399.5,0.23382735]
[1721257418580,18.32867875,3399.6,3399.5,0.23382735]
[1721257418760,2.94226,3398.8,3398.1,2.94282]
[1721257418956,0.6145728,3398.6,3398.2,0.837021]
[1721257419168,0.07673927,3398.5,3398.2,0.837021]
[1721257419337,0.6145728,3398.6,3398.2,0.837021]
[1721257419532,0.07673924,3398.5,3398.2,0.837021]
[1721257419733,0.6145728,3398.6,3398.2,0.837021]
[1721257419961,0.07673924,3398.5,3398.2,0.837021]
[1721257420144,0.6145728,3398.6,3398.2,0.837021]
[1721257420365,0.69131424,3398.5,3398.0,2.4844]
[1721257420676,0.69131498,3398.4,3397.7,2.94315]
[1721257420855,0.6145728,3398.4,3397.8,2.94306]
[1721257421064,0.07674315,3398.3,3397.8,2.94306]
[1721257421270,0.6145728,3398.4,3397.9,4.078421]
[1721257421778,0.07674408,3398.3,3397.9,1.135431]
[1721257421947,0.6145728,3398.4,3397.9,1.135431]
[1721257422147,0.6145728,3398.4,3397.9,4.078421]
[1721257423331,0.6145728,3398.5,3397.9,4.078421]
[1721257423534,0.07674443,3398.4,3397.9,4.078421]
[1721257423763,0.6145728,3398.5,3398.0,0.7021531]
[1721257423971,0.07674442,3398.4,3398.0,0.7021531]
[1721257424153,0.6145728,3398.5,3398.0,0.7021531]
[1721257424354,0.07674442,3398.4,3398.0,0.7021531]
[1721257424560,0.6145728,3398.5,3398.0,0.7021531]
[1721257426648,3.5569728,3398.6,3398.0,0.7021531]
[1721257426849,0.07674427,3398.5,3398.0,0.7021531]
[1721257427032,3.5569728,3398.6,3398.0,0.7021531]
[1721257427336,0.07674428,3398.5,3398.0,0.7021531]
[1721257427536,3.5569728,3398.6,3398.0,0.7021531]
[1721257427746,0.07674419,3398.5,3398.2,2.2941]
[1721257427949,0.6145728,3398.7,3398.2,2.2941]
[1721257428168,3.5569128,3398.7,3398.2,2.2941]
[1721257428356,2.94239,3398.6,3398.2,2.2941]
[1721257429540,0.6145728,3398.7,3398.2,2.2941]
[1721257429939,3.0568428,3398.8,3398.3,0.64172105]
[1721257430139,0.07673984,3398.7,3398.3,0.64172105]
[1721257430336,0.69131296,3398.7,3398.3,0.64172105]
[1721257430660,3.0568428,3398.8,3398.3,0.64172105]
[1721257430849,3.63361361,3398.7,3398.3,0.64172105]
[1721257431046,3.5568728,3398.7,3398.3,0.64172105]
[1721257431272,3.0568728,3398.7,3398.3,0.64172105]
[1721257431487,0.07674267,3398.6,3398.2,2.2941]
[1721257431651,2.94239,3398.6,3398.2,2.2941]
[1721257439597,0.6145728,3398.7,3398.2,2.2941]
[1721257439798,0.07674293,3398.6,3398.3,1.061]
[1721257440010,0.6145728,3398.7,3398.4,1.061]
[1721257440317,0.07674279,3398.6,3398.4,1.690785]
[1721257440522,0.6145728,3398.7,3398.4,1.690785]
[1721257440821,0.07674281,3398.6,3398.4,1.690785]
[1721257440978,0.6145728,3398.7,3398.4,1.061]
[1721257441183,0.07674281,3398.6,3398.4,1.061]
[1721257441523,0.6145728,3398.7,3398.4,1.061]
[1721257441734,0.07674281,3398.6,3398.4,1.061]
[1721257441885,0.6145728,3398.7,3398.4,1.061]
[1721257442219,0.69131562,3398.6,3398.4,1.061]
[1721257442414,0.6145728,3398.6,3398.4,1.061]
[1721257442614,0.6145728,3398.6,3398.2,2.2941]
[1721257442920,0.6145728,3398.6,3398.1,1.061]
[1721257443418,0.6145728,3398.6,3398.1,3.578426]
[1721257443597,0.6145728,3398.6,3398.4,1.061]
[1721257443795,0.6145728,3398.8,3398.4,1.061]
[1721257444210,10.8667328,3398.9,3398.4,1.061]
[1721257444409,0.07673446,3398.8,3398.4,1.061]
[1721257444600,7.9245728,3398.9,3398.7,2.2813]
[1721257444803,0.69130646,3398.8,3398.7,3.3423]
[1721257446827,0.6145728,3398.8,3398.7,3.3423]
[1721257446992,2.2825,3398.7,3397.6,2.3548]
[1721257447191,2.2825,3398.7,3397.3,2.3548]
[1721257447192,3.55743154,3398.0,3397.3,2.3548]
[1721257447395,3.55743154,3398.0,3396.8,7.39]
[1721257447396,0.61450154,3397.6,3396.9,3.68279]
[1721257447627,0.61450154,3397.4,3396.9,4.74379]
[1721257447833,0.07675689,3397.3,3396.9,4.74379]
[1721257448000,0.61450154,3397.4,3397.0,1.004262]
[1721257448396,0.07676988,3397.3,3397.0,1.004262]
[1721257448733,0.61450154,3397.4,3397.0,1.004262]
[1721257448894,0.07676949,3397.3,3397.0,1.004262]
[1721257449103,0.61450154,3397.4,3397.0,1.004262]
[1721257449407,0.61450154,3397.4,3396.8,2.3548]
[1721257449608,0.07677007,3397.3,3396.8,2.3548]
[1721257449820,0.61450154,3397.4,3396.8,2.3548]
[1721257450053,0.07986288,3397.3,3396.8,2.3548]
[1721257450192,0.00498215,3397.3,3396.8,2.3548]
[1721257450397,0.00947509,3397.3,3396.9,0.529883]
[1721257450604,0.62397663,3397.3,3396.9,0.529883]
[1721257450805,0.62397663,3397.3,3396.8,2.3548]
[1721257451015,0.61450154,3397.1,3396.5,2.94419]
[1721257451210,0.00423824,3397.0,3396.5,2.94419]
[1721257451439,0.72404071,3397.0,3396.5,2.94419]
[1721257451623,0.64726202,3397.0,3396.5,2.94419]
[1721257452119,0.03276048,3397.0,3396.5,2.94419]
[1721257452767,0.64726202,3397.0,3396.5,2.94419]
[1721257453257,0.03276048,3397.0,3396.5,2.94419]
[1721257453432,0.64726202,3397.0,3396.5,2.94419]
[1721257454257,0.0059755,3397.0,3396.5,2.94419]
[1721257454432,0.62047704,3397.0,3396.5,2.94419]
[1721257455261,0.0059755,3397.0,3396.5,3.781655]
[1721257455556,0.03016027,3397.0,3396.5,3.781655]
[1721257455778,0.62047704,3397.0,3396.5,3.781655]
[1721257456357,0.0059755,3397.0,3396.5,3.781655]
[1721257456775,0.03116459,3397.0,3396.5,3.781655]
[1721257457329,0.0059755,3397.0,3396.5,3.781655]
[1721257457525,0.03355633,3397.0,3396.5,2.94419]
[1721257457767,0.0059755,3397.0,3396.5,2.94419]
[1721257458767,3.55810154,3397.2,3396.5,2.94419]
[1721257458966,0.0059755,3396.9,3396.5,2.94419]
[1721257459144,0.61450154,3397.1,3396.5,2.94419]
[1721257459740,3.55810154,3397.2,3396.5,2.94419]
[1721257459965,0.69128128,3397.1,3396.5,2.94419]
[1721257460140,0.61450154,3397.2,3396.5,3.781655]
[1721257460343,0.61450154,3397.4,3396.9,2.94386]
[1721257460564,0.9218592,3397.5,3396.9,2.94386]
[1721257460565,0.61450154,3397.5,3396.9,2.94386]
[1721257460748,0.61450154,3397.6,3396.9,2.94386]
[1721257460963,0.6912715,3397.5,3396.9,2.94386]
[1721257461145,0.61450154,3397.5,3396.9,2.94386]
[1721257461378,0.07677165,3397.4,3396.9,2.94386]
[1721257461580,0.61450154,3397.5,3396.9,3.532649]
[1721257461781,0.07677271,3397.4,3396.9,3.532649]
[1721257461983,0.61450154,3397.5,3396.9,3.532649]
[1721257462188,0.0767727,3397.4,3396.9,3.532649]
[1721257462364,0.61450154,3397.5,3396.9,0.588789]
[1721257462566,0.07677347,3397.4,3396.8,2.94394]
[1721257462802,0.69127507,3397.4,3396.8,2.94394]
[1721257462976,0.61450154,3397.4,3396.8,2.94394]
[1721257463370,0.61450154,3397.5,3396.8,2.94394]
[1721257463763,0.0767714,3397.4,3396.8,2.94394]
[1721257464001,0.61450154,3397.5,3396.8,3.6164905]
[1721257464302,0.07677129,3397.4,3396.8,3.6164905]
[1721257464596,0.61450154,3397.5,3396.8,3.6164905]
[1721257465172,0.61450154,3397.5,3396.9,2.94384]
[1721257465597,0.07676999,3397.4,3396.9,2.94384]
[1721257465801,0.61450154,3397.5,3396.9,2.94384]